bitfinex/quotes_SOLUSD_20250518
["timestamp","ask_amount","ask_price","bid_price","bid_amount"]
[1747589305790,20.05500802,174.52,174.41,6.323]
[1747589306028,22.88026148,174.5,174.41,6.323]
[1747589306321,22.88026148,174.5,174.45,22.88026148]
[1747589306515,22.88026148,174.5,174.41,6.323]
[1747589307016,5.73098744,174.49,174.46,22.88026148]
[1747589307196,5.73098744,174.49,174.41,6.323]
[1747589307396,5.73098744,174.49,174.46,22.88026148]
[1747589307609,5.73098744,174.49,174.41,32.323]
[1747589307788,5.73098744,174.49,174.47,22.88026148]
[1747589307994,5.73098744,174.49,174.41,32.323]
[1747589308189,5.73033064,174.51,174.48,22.88026148]
[1747589308498,8.12974933,174.53,174.5,22.88026148]
[1747589308706,5.72974933,174.53,174.5,22.88026148]
[1747589308911,5.7293457,174.54,174.5,22.88026148]
[1747589309516,20.05270997,174.54,174.5,22.88026148]
[1747589309732,42.93297145,174.54,174.43,26.0]
[1747589310025,22.88026148,174.46,174.41,6.323]
[1747589310326,22.88026148,174.47,174.41,29.20326148]
[1747589310493,22.88026148,174.49,174.43,22.88026148]
[1747589310701,22.88026148,174.49,174.44,22.88026148]
[1747589310921,22.88026148,174.49,174.43,22.88026148]
[1747589310922,5.73131591,174.48,174.43,22.88026148]
[1747589311420,5.73131591,174.48,174.41,6.323]
[1747589311594,5.73131591,174.48,174.46,22.88026148]
[1747589312217,5.73131591,174.48,174.47,22.88026148]
[1747589312418,5.73131591,174.48,174.41,6.323]
[1747589312624,5.73131591,174.48,174.46,22.88026148]
[1747589312837,5.73131591,174.48,174.41,6.323]
[1747589312838,5.73131591,174.48,174.47,22.88026148]
[1747589312998,42.93644258,174.51,174.41,6.323]
[1747589313418,20.0561811,174.51,174.46,22.88026148]
[1747589313615,42.93644258,174.51,174.46,22.88026148]
[1747589313822,20.0561811,174.51,174.41,12.05657478]
[1747589314137,20.0561811,174.51,174.47,22.88026148]
[1747589314507,42.93644258,174.51,174.46,22.88026148]
[1747589314827,20.0561811,174.51,174.46,22.88026148]
[1747589315529,5.72868927,174.56,174.5,22.88026148]
[1747589315733,5.72868927,174.56,174.52,22.88026148]
[1747589316207,5.72868927,174.56,174.46,7.7727]
[1747589316413,20.05041245,174.56,174.51,22.88026148]
[1747589316615,20.05041245,174.56,174.52,22.88026148]
[1747589317415,20.05041245,174.56,174.42,22.88026148]
[1747589317416,18.64964886,174.52,174.42,22.88026148]
[1747589317623,22.88026148,174.48,174.43,22.88026148]
[1747589317824,18.64964886,174.52,174.43,22.88026148]
[1747589318025,18.64964886,174.52,174.44,22.88026148]
[1747589318332,22.88026148,174.51,174.45,22.88026148]
[1747589318512,5.73065902,174.5,174.46,22.88026148]
[1747589318708,5.73065902,174.5,174.48,22.88026148]
[1747589319508,5.73065902,174.5,174.47,22.88026148]
[1747589319831,14.3256606,174.52,174.48,22.88026148]
[1747589320522,14.3256606,174.52,174.44,6.141]
[1747589320710,14.3256606,174.52,174.49,22.88026148]
[1747589321109,2.4,174.51,174.49,22.88026148]
[1747589321511,5.7293457,174.54,174.45,1.5776]
[1747589321729,14.32336427,174.54,174.49,22.88026148]
[1747589322126,37.20362575,174.54,174.49,22.88026148]
[1747589322532,37.20362575,174.54,174.45,1.5776]
[1747589322739,22.88026148,174.53,174.45,1.5776]
[1747589322921,22.88026148,174.52,174.47,22.88026148]
[1747589323122,14.32336427,174.54,174.47,22.88026148]
[1747589323447,22.88026148,174.48,174.4,7.7186]
[1747589323613,22.88026148,174.46,174.4,7.7186]
[1747589323954,20.05960568,174.48,174.41,22.88026148]
[1747589324152,22.88026148,174.46,174.4,7.7186]
[1747589324330,22.88026148,174.46,174.41,22.88026148]
[1747589324648,22.88026148,174.46,174.4,7.7186]
[1747589324821,22.88026148,174.47,174.42,22.88026148]
[1747589325135,20.05960568,174.48,174.42,22.88026148]
[1747589325337,20.05960568,174.48,174.41,22.88026148]
[1747589325547,20.05960568,174.48,174.43,22.88026148]
[1747589325719,42.93986716,174.48,174.42,22.88026148]
[1747589325920,22.88026148,174.47,174.42,22.88026148]
[1747589326125,25.28026148,174.47,174.4,7.7186]
[1747589326334,25.28026148,174.47,174.42,22.88026148]
[1747589326641,25.28026148,174.47,174.4,7.7186]
[1747589326843,22.88026148,174.46,174.41,22.88026148]
[1747589327716,5.73197294,174.46,174.43,22.88026148]
[1747589329019,2.4,174.47,174.45,22.88026148]
[1747589329219,2.4,174.47,174.46,22.88026148]
[1747589329637,8.1316444,174.47,174.4,113.39886148]
[1747589329924,8.1316444,174.47,174.45,22.88026148]
[1747589330125,8.1316444,174.47,174.4,119.13279996]
[1747589330126,2.4,174.47,174.46,22.88026148]
[1747589331330,8.13165156,174.47,174.4,116.5186]
[1747589331667,8.13165156,174.47,174.45,22.88026148]
[1747589332336,8.13165156,174.47,174.46,22.88026148]
[1747589332519,2.4,174.47,174.46,22.88026148]
[1747589332725,5.73102957,174.49,174.46,22.88026148]
[1747589333339,5.73102957,174.49,174.47,22.88026148]
[1747589333920,5.73033064,174.51,174.47,22.88026148]
[1747589334126,5.73033064,174.51,174.41,5.73343425]
[1747589334325,22.88026148,174.47,174.41,22.88026148]
[1747589334521,22.88026148,174.48,174.43,22.88026148]
[1747589335054,2.4,174.46,174.43,22.88026148]
[1747589335424,22.88026148,174.48,174.43,22.88026148]
[1747589335630,22.88026148,174.49,174.43,22.88026148]
[1747589336047,20.05615724,174.51,174.43,22.88026148]
[1747589336274,22.88026148,174.48,174.4,7.7186]
[1747589336436,18.64964886,174.5,174.4,7.7186]
[1747589336640,22.88026148,174.46,174.41,22.88026148]
[1747589336848,22.88026148,174.46,174.4,7.7186]
[1747589337033,22.88026148,174.46,174.4,30.59886148]
[1747589337452,22.88026148,174.46,174.4,7.7186]
[1747589337751,22.88026148,174.44,174.37,214.5]
[1747589337930,22.88026148,174.44,174.38,22.88026148]
[1747589338132,22.88026148,174.41,174.37,214.5]
[1747589338352,22.88026148,174.4,174.34,22.88026148]
[1747589338532,22.88026148,174.4,174.35,22.88026148]
[1747589338722,20.06650612,174.42,174.36,22.88026148]
[1747589338931,5.73230151,174.45,174.33,26.0]
[1747589339228,28.61256299,174.45,174.4,22.88026148]
[1747589339455,5.73230151,174.45,174.39,22.88026148]
[1747589339762,22.88026148,174.44,174.38,22.88026148]
[1747589339928,22.88026148,174.44,174.39,22.88026148]
[1747589340123,20.06650612,174.42,174.33,108.8]
[1747589340437,5.73328746,174.42,174.41,22.88026148]
[1747589341051,8.13300052,174.43,174.41,22.88026148]
[1747589341259,14.32754975,174.49,174.42,22.88026148]
[1747589341447,5.73033064,174.51,174.47,22.88026148]
[1747589341651,5.73033064,174.51,174.48,22.88026148]
[1747589341962,5.73033064,174.51,174.41,1.5191]
[1747589342163,5.73033064,174.51,174.47,22.88026148]
[1747589342340,5.73033064,174.51,174.48,22.88026148]
[1747589342655,5.73033064,174.51,174.47,22.88026148]
[1747589343066,5.73033064,174.51,174.48,22.88026148]
[1747589343357,5.73033064,174.51,174.47,22.88026148]
[1747589343936,5.73033064,174.51,174.46,22.88026148]
[1747589344334,5.73033064,174.51,174.47,22.88026148]
[1747589344554,5.73033064,174.51,174.41,1.5191]
[1747589344734,5.73033064,174.51,174.48,22.88026148]
[1747589345061,5.73033064,174.51,174.49,22.88026148]
[1747589345244,2.4,174.5,174.42,1.14621779]
[1747589345556,2.4,174.5,174.49,22.88026148]
[1747589345939,2.4,174.5,174.49,29.26366148]
[1747589346244,2.4,174.5,174.48,22.88026148]
[1747589346445,2.4,174.5,174.49,22.88026148]
[1747589348543,5.72999637,174.53,174.43,13.26216487]
[1747589348748,5.72999637,174.53,174.51,22.88026148]
[1747589349136,5.72999637,174.53,174.52,22.88026148]
[1747589349446,5.72999637,174.53,174.51,22.88026148]
[1747589349643,42.93124442,174.56,174.51,22.88026148]
[1747589349842,42.93124442,174.56,174.5,22.88026148]
[1747589350035,20.05098294,174.56,174.52,22.88026148]
[1747589350546,22.88026148,174.55,174.5,22.88026148]
[1747589351065,42.93124442,174.56,174.51,22.88026148]
[1747589351563,5.72967398,174.53,174.49,22.88026148]
[1747589351757,5.72967398,174.53,174.5,22.88026148]
[1747589352566,5.72967398,174.53,174.49,22.88026148]
[1747589352762,5.72868927,174.56,174.52,22.88026148]
[1747589352944,5.72868927,174.56,174.5,24.40356148]
[1747589353149,5.72868927,174.56,174.54,22.88026148]
[1747589353552,5.72803299,174.58,174.5,1.5233]
[1747589353939,28.60829447,174.58,174.5,1.5233]
[1747589354157,20.04811547,174.58,174.5,24.40356148]
[1747589354464,20.04811547,174.58,174.54,22.88026148]
[1747589354667,42.92837695,174.58,174.53,22.88026148]
[1747589355040,20.04811547,174.58,174.53,22.88026148]
[1747589355237,20.04811547,174.58,174.54,22.88026148]
[1747589355667,5.72803299,174.58,174.54,22.88026148]
[1747589355860,5.72803299,174.58,174.55,22.88026148]
[1747589356770,5.72803299,174.58,174.5,30.13421104]
[1747589356771,5.72803299,174.58,174.5,1.5233]
[1747589357072,5.72803299,174.58,174.54,22.88026148]
[1747589357242,5.72803299,174.58,174.5,1.5233]
[1747589357448,22.88026148,174.57,174.5,1.5233]
[1747589357748,5.72868927,174.56,174.5,1.5233]
[1747589357957,5.72868927,174.56,174.52,22.88026148]
[1747589358348,28.60895075,174.56,174.5,1.5233]
[1747589358574,22.88026148,174.55,174.5,1.5233]
[1747589358745,22.88026148,174.55,174.5,24.40356148]
[1747589359080,22.88026148,174.55,174.5,1.5233]
[1747589359255,22.88026148,174.55,174.5,24.40356148]
[1747589359577,22.88026148,174.55,174.5,1.5233]
[1747589359778,20.05041245,174.56,174.49,6.5044]
[1747589359779,5.72967398,174.53,174.49,6.5044]
[1747589360069,5.72803299,174.58,174.49,6.5044]
[1747589360271,28.60829447,174.58,174.49,6.5044]
[1747589360487,20.04811547,174.58,174.49,6.5044]
[1747589360659,22.88026148,174.56,174.5,22.88026148]
[1747589361170,20.04811547,174.58,174.49,6.5044]
[1747589361369,22.88026148,174.55,174.5,22.88026148]
[1747589362081,5.7293457,174.54,174.5,22.88026148]
[1747589362272,5.7293457,174.54,174.51,22.88026148]
[1747589362868,5.7293457,174.54,174.53,22.88026148]
[1747589363064,5.7293457,174.54,174.52,22.88026148]
[1747589363261,5.72836111,174.57,174.49,6.5044]
[1747589363572,20.04926389,174.57,174.52,22.88026148]
[1747589363772,20.04926389,174.57,174.53,22.88026148]
[1747589364071,20.04926389,174.57,174.49,6.5044]
[1747589364375,20.04926389,174.57,174.53,22.88026148]
[1747589364575,5.72836111,174.57,174.55,22.88026148]
[1747589364795,5.72737686,174.6,174.56,22.88026148]
[1747589365095,5.72737686,174.6,174.57,22.88026148]
[1747589365311,5.72737686,174.6,174.54,1.5634]
[1747589365465,5.72737686,174.6,174.57,22.88026148]
[1747589365789,5.72737686,174.6,174.58,22.88026148]
[1747589365966,5.72737686,174.6,174.57,22.88026148]
[1747589366165,5.72704885,174.61,174.57,22.88026148]
[1747589366566,5.72704885,174.61,174.59,22.88026148]
[1747589367007,5.72639294,174.63,174.6,22.88026148]
[1747589367178,5.72639294,174.63,174.61,22.88026148]
[1747589368091,5.72540936,174.66,174.57,6.6232]
[1747589368271,5.72540936,174.66,174.62,22.88026148]
[1747589368476,37.19331925,174.67,174.62,22.88026148]
[1747589368668,14.31305777,174.67,174.62,22.88026148]
[1747589368869,37.19331925,174.67,174.62,22.88026148]
[1747589369064,22.88026148,174.66,174.61,22.88026148]
[1747589369567,14.31305777,174.67,174.61,22.88026148]
[1747589369879,37.19331925,174.67,174.62,22.88026148]
[1747589370062,14.31305777,174.67,174.62,22.88026148]
[1747589370260,37.19331925,174.67,174.62,22.88026148]
[1747589370479,42.91840083,174.67,174.62,22.88026148]
[1747589370989,22.88026148,174.66,174.57,32.6232]
[1747589371366,22.88026148,174.66,174.61,22.88026148]
[1747589371994,20.03813935,174.67,174.61,22.88026148]
[1747589372376,22.88026148,174.66,174.61,22.88026148]
[1747589372602,38.68399344,174.7,174.61,22.88026148]
[1747589372802,22.88026148,174.66,174.61,22.88026148]
[1747589373203,22.88026148,174.67,174.62,22.88026148]
[1747589373369,22.88026148,174.66,174.61,22.88026148]
[1747589373568,5.72573718,174.65,174.61,22.88026148]
[1747589373775,5.72573718,174.65,174.62,14.30158115]
[1747589374096,5.72442612,174.69,174.63,14.30158115]
[1747589374287,5.72442612,174.69,174.64,14.30158115]
[1747589374602,20.02600727,174.69,174.64,14.30158115]
[1747589374974,5.72442612,174.69,174.64,14.30158115]
[1747589375176,20.02600727,174.69,174.64,14.30158115]
[1747589375375,5.72442612,174.69,174.65,14.30158115]
[1747589375577,5.72442612,174.69,174.66,14.30158115]
[1747589375771,14.30822424,174.73,174.68,14.30158115]
[1747589376178,14.30822424,174.73,174.67,1.5487]
[1747589376381,28.60980539,174.73,174.68,14.30158115]
[1747589376573,28.60980539,174.73,174.67,1.5487]
[1747589376777,20.02502437,174.72,174.67,15.85028115]
[1747589376977,5.72344322,174.72,174.68,14.30158115]
[1747589377195,5.72344322,174.72,174.67,1.5487]
[1747589377375,20.02502437,174.72,174.67,15.85028115]
[1747589377576,5.72344322,174.72,174.68,14.30158115]
[1747589378180,5.72344322,174.72,174.66,6.0135]
[1747589378381,14.30158115,174.71,174.66,6.0135]
[1747589378582,14.30158115,174.71,174.67,14.30158115]
[1747589378783,5.72409845,174.7,174.66,6.0135]
[1747589378987,20.0256796,174.7,174.66,6.0135]
[1747589379194,20.0256796,174.7,174.66,20.31508115]
[1747589379397,20.0256796,174.7,174.66,6.0135]
[1747589379602,20.0256796,174.7,174.66,20.31508115]
[1747589379902,20.03434458,174.7,174.62,15.85028115]
[1747589380101,14.30158115,174.68,174.64,14.30158115]
[1747589380402,14.30158115,174.68,174.63,14.30158115]
[1747589380702,14.30158115,174.69,174.64,14.30158115]
[1747589381006,5.72475383,174.68,174.62,1.5487]
[1747589381299,5.72475383,174.68,174.64,14.30158115]
[1747589381898,5.72475383,174.68,174.65,14.30158115]
[1747589382204,5.72475383,174.68,174.62,1.5487]
[1747589382510,5.72475383,174.68,174.64,14.30158115]
[1747589383209,5.72475383,174.68,174.65,14.30158115]
[1747589383412,5.72475383,174.68,174.62,1.5487]
[1747589383586,5.7244897,174.69,174.62,7.27532798]
[1747589383782,5.7244897,174.69,174.65,14.30158115]
[1747589384027,5.7244897,174.69,174.66,14.30158115]
[1747589384320,5.72377082,174.71,174.68,14.30158115]
[1747589384482,5.72246065,174.75,174.7,14.30158115]
[1747589384681,5.72246065,174.75,174.71,14.30158115]
[1747589384919,5.72246065,174.75,174.69,6.6262]
[1747589385200,5.72246065,174.75,174.71,14.30158115]
[1747589385804,5.72246065,174.75,174.69,6.6262]
[1747589386007,5.72246065,174.75,174.7,14.30158115]
[1747589386303,20.0240418,174.75,174.7,14.30158115]
[1747589386514,20.0240418,174.75,174.69,6.6262]
[1747589386679,5.72246065,174.75,174.71,14.30158115]
[1747589386875,5.72246065,174.75,174.69,6.6262]
[1747589387076,28.60729134,174.76,174.72,14.30158115]
[1747589387492,5.72147843,174.78,174.75,14.30158115]
[1747589388793,14.30158115,174.8,174.75,14.30158115]
[1747589388794,5.72115109,174.79,174.75,14.30158115]
[1747589389186,20.02273224,174.79,174.7,1.5677]
[1747589389520,20.02273224,174.79,174.74,14.30158115]
[1747589389680,14.30158115,174.75,174.7,15.86928115]
[1747589390404,14.30158115,174.74,174.69,6.6262]
[1747589390812,14.30158115,174.75,174.7,14.30158115]
[1747589390984,14.30158115,174.73,174.68,14.30158115]
[1747589391185,14.30158115,174.72,174.67,14.30158115]
[1747589391701,20.02975849,174.74,174.68,14.30158115]
[1747589391904,34.33133964,174.74,174.69,14.30158115]
[1747589392213,5.72278814,174.74,174.7,14.30158115]
[1747589392702,5.72278814,174.74,174.72,14.30158115]
[1747589392909,5.72213321,174.76,174.72,14.30158115]
[1747589393506,5.72115109,174.79,174.75,14.30158115]
[1747589393702,5.72115109,174.79,174.74,6.5966]
[1747589394007,5.72115109,174.79,174.76,22.84283902]
[1747589394311,5.72115109,174.79,174.75,22.84283902]
[1747589394707,22.84283902,174.78,174.73,1.5393]
[1747589394914,5.72147843,174.78,174.73,24.38213902]
[1747589395118,5.72147843,174.78,174.73,1.5393]
[1747589395307,20.0251745,174.78,174.73,24.38213902]
[1747589395611,42.86801352,174.78,174.73,24.38213902]
[1747589396186,20.0251745,174.78,174.73,24.38213902]
[1747589396385,22.84283902,174.76,174.71,22.84283902]
[1747589396807,22.84283902,174.76,174.7,6.1217]
[1747589397009,22.84283902,174.76,174.71,22.84283902]
[1747589397303,32.95334493,174.78,174.7,28.96453902]
[1747589397304,22.84283902,174.75,174.7,28.96453902]
[1747589397483,22.84283902,174.76,174.71,22.84283902]
[1747589397683,22.84283902,174.76,174.7,6.1217]
[1747589397918,32.95334493,174.78,174.71,22.84283902]
[1747589398121,22.84283902,174.76,174.71,22.84283902]
[1747589398427,5.72246065,174.75,174.71,22.84283902]
[1747589399693,5.72246065,174.75,174.73,22.84283902]
[1747589400107,5.72246065,174.75,174.72,22.84283902]
[1747589400515,5.72213321,174.76,174.72,22.84283902]
[1747589400717,5.72213321,174.76,174.73,22.84283902]
[1747589400994,5.72213321,174.76,174.75,22.84283902]
[1747589401207,18.64964886,174.82,174.75,22.84283902]
[1747589401208,32.95057206,174.82,174.75,22.84283902]
[1747589401402,32.95057206,174.82,174.7,34.6885648]
[1747589401403,22.84283902,174.81,174.76,22.84283902]
[1747589401817,5.72049653,174.81,174.78,22.84283902]
[1747589402028,5.72049653,174.81,174.79,22.84283902]
[1747589402313,5.72049653,174.81,174.78,22.84283902]
[1747589402538,41.49248788,174.8,174.71,1.5384]
[1747589402696,22.84283902,174.77,174.72,22.84283902]
[1747589403027,22.84283902,174.76,174.71,24.38123902]
[1747589403408,22.84283902,174.77,174.72,22.84283902]
[1747589404222,38.67482336,174.78,174.72,22.84283902]
[1747589404422,22.84283902,174.77,174.72,22.84283902]
[1747589404723,20.02203959,174.81,174.76,22.84283902]
[1747589404933,5.72049653,174.81,174.78,22.84283902]
[1747589405133,5.72049653,174.81,174.77,22.84283902]
[1747589405501,5.72049653,174.81,174.78,22.84283902]
[1747589405830,5.72049653,174.81,174.79,22.84283902]
[1747589406400,5.72049653,174.81,174.8,22.84283902]
[1747589406594,22.84283902,174.85,174.8,22.84283902]
[1747589406799,20.01715755,174.85,174.78,6.0378]
[1747589407024,42.85999657,174.85,174.78,6.0378]
[1747589407225,42.85999657,174.85,174.8,22.84283902]
[1747589407523,22.84283902,174.81,174.75,6.0378]
[1747589407723,22.84283902,174.8,174.75,6.0378]
[1747589407926,22.84283902,174.8,174.75,28.88063902]
[1747589408128,22.84283902,174.8,174.75,6.0378]
[1747589408341,22.84283902,174.8,174.75,28.88063902]
[1747589408632,5.71984213,174.83,174.78,22.84283902]
[1747589408829,5.71984213,174.83,174.75,6.0378]
[1747589408830,5.71984213,174.83,174.79,22.84283902]
[1747589409247,5.71984213,174.83,174.8,22.84283902]
[1747589409430,5.71984213,174.83,174.79,22.84283902]
[1747589409832,5.71984213,174.83,174.8,22.84283902]
[1747589410133,5.71984213,174.83,174.75,12.90437472]
[1747589410619,5.71951498,174.84,174.8,22.84283902]
[1747589411418,5.71951498,174.84,174.81,22.84283902]
[1747589411623,5.71951498,174.84,174.78,1.5592]
[1747589411814,5.71951498,174.84,174.81,22.84283902]
[1747589412126,5.71951498,174.84,174.82,22.84283902]
[1747589412334,5.71951498,174.84,174.83,22.84283902]
[1747589412506,5.71853376,174.87,174.83,22.84283902]
[1747589412833,20.01143509,174.9,174.83,6.0378]
[1747589413007,20.01143509,174.9,174.85,22.84283902]
[1747589413408,20.01143509,174.9,174.86,22.84283902]
[1747589413827,42.85427411,174.9,174.85,22.84283902]
[1747589414135,22.84283902,174.86,174.83,6.0378]
[1747589414335,18.64964886,174.89,174.83,6.0378]
[1747589414524,20.01143509,174.9,174.83,6.0378]
[1747589414841,42.85427411,174.9,174.85,22.84283902]
[1747589415008,42.85427411,174.9,174.83,6.0378]
[1747589415208,20.01143509,174.9,174.86,22.84283902]
[1747589416132,42.85427411,174.9,174.83,6.0378]
[1747589416342,20.01143509,174.9,174.85,22.84283902]
[1747589416508,20.01143509,174.9,174.84,22.84283902]
[1747589416714,5.71820677,174.88,174.84,22.84283902]
[1747589417739,5.71820677,174.88,174.85,22.84283902]
[1747589418237,5.71820677,174.88,174.86,22.84283902]
[1747589418610,5.71820677,174.88,174.87,22.84283902]
[1747589418919,5.717226,174.91,174.87,22.84283902]
[1747589420834,42.85313002,174.91,174.83,6.0378]
[1747589421043,20.010291,174.91,174.87,22.84283902]
[1747589421334,5.717226,174.91,174.89,22.84283902]
[1747589421638,5.717226,174.91,174.9,22.84283902]
[1747589421933,37.13335284,174.95,174.9,22.84283902]
[1747589422113,14.29051382,174.95,174.91,22.84283902]
[1747589422314,5.71624556,174.94,174.91,22.84283902]
[1747589422532,5.71559213,174.96,174.92,22.84283902]
[1747589422728,5.71559213,174.96,174.94,22.84283902]
[1747589423512,5.71559213,174.96,174.95,22.84283902]
[1747589423736,5.71559213,174.96,174.9,27.14327058]
[1747589423940,5.71559213,174.96,174.94,22.84283902]
[1747589424440,14.286933,174.99,174.9,49.9861096]
[1747589424636,14.286933,174.99,174.95,22.84283902]
[1747589425527,37.12977202,174.99,174.95,22.84283902]
[1747589425725,18.64964886,174.98,174.91,22.84283902]
[1747589426037,22.84283902,174.96,174.92,22.84283902]
[1747589426239,41.49248788,174.98,174.93,22.84283902]
[1747589426540,5.71526547,174.97,174.93,22.84283902]
[1747589426843,20.00342915,174.97,174.92,22.84283902]
[1747589427020,42.84626817,174.97,174.92,22.84283902]
[1747589427942,42.84626817,174.97,174.89,6.1021]
[1747589428131,42.84626817,174.97,174.92,22.84283902]
[1747589428634,5.71591883,174.95,174.89,6.1021]
[1747589428947,5.71591883,174.95,174.92,22.84283902]
[1747589430425,5.71591883,174.95,174.91,22.84283902]
[1747589430744,5.71591883,174.95,174.89,6.1021]
[1747589431244,5.71591883,174.95,174.92,22.84283902]
[1747589432147,5.71591883,174.95,174.93,22.84283902]
[1747589432849,22.84283902,174.97,174.9,1.14321379]
[1747589433022,22.84283902,174.97,174.93,22.84283902]
[1747589433337,22.84283902,174.97,174.9,1.14321379]
[1747589433544,20.00114291,174.99,174.93,22.84283902]
[1747589433922,22.84283902,174.98,174.9,1.14321379]
[1747589434123,22.84283902,174.97,174.9,1.14321379]
[1747589434363,20.00114291,174.99,174.93,22.84283902]
[1747589434844,22.84283902,174.97,174.92,22.84283902]
[1747589435029,5.71559213,174.96,174.92,22.84283902]
[1747589435232,5.71559213,174.96,174.91,22.84283902]
[1747589435417,28.55843115,174.96,174.91,22.84283902]
[1747589435617,19.9680621,174.96,174.91,14.25246997]
[1747589435823,19.9680621,174.96,174.9,1.14321379]
[1747589436033,19.9680621,174.96,174.91,14.25246997]
[1747589436229,14.25246997,174.94,174.89,6.1021]
[1747589436622,14.25246997,174.94,174.89,20.35456997]
[1747589437020,5.71657234,174.93,174.89,20.35456997]
[1747589437715,19.96904231,174.93,174.86,2.68430027]
[1747589438040,14.25246997,174.92,174.88,14.25246997]
[1747589438243,20.00800319,174.93,174.86,1.5409]
[1747589438419,14.25246997,174.88,174.84,296.78]
[1747589438615,14.25246997,174.89,174.84,228.23246997]
[1747589438820,5.71657234,174.93,174.88,14.25246997]
[1747589439046,19.96904231,174.93,174.84,328.49943238]
[1747589439222,19.96904231,174.93,174.88,14.25246997]
[1747589439543,19.96904231,174.93,174.84,328.49943238]
[1747589439747,19.96904231,174.93,174.88,14.25246997]
[1747589440042,20.00472914,174.96,174.88,14.25246997]
[1747589440232,14.25246997,174.93,174.85,6.86259869]
[1747589440430,14.25246997,174.92,174.85,1.14342407]
[1747589440743,26.0,174.93,174.85,1.14342407]
[1747589440939,14.25246997,174.92,174.88,14.25246997]
[1747589441138,14.25246997,174.92,174.84,296.78]
[1747589441346,26.0,174.93,174.86,14.25246997]
[1747589441547,26.0,174.93,174.87,14.25246997]
[1747589441840,14.25246997,174.91,174.87,14.25246997]
[1747589442049,5.71755288,174.9,174.86,14.25246997]
[1747589442351,14.25246997,174.89,174.84,228.23246997]
[1747589442532,14.25246997,174.89,174.84,213.98]
[1747589442737,14.25246997,174.86,174.84,213.98]
[1747589443044,26.0,174.87,174.84,213.98]
[1747589443257,14.25246997,174.86,174.84,213.98]
[1747589443434,14.25246997,174.85,174.81,4.44128471]
[1747589443756,0.5,174.86,174.81,4.44128471]
[1747589443924,20.51143509,174.9,174.84,14.25246997]
[1747589444124,14.25246997,174.89,174.84,14.25246997]
[1747589444324,46.51143509,174.9,174.84,14.25246997]
[1747589444528,60.26390506,174.9,174.85,14.25246997]
[1747589444955,46.01143509,174.9,174.85,14.25246997]
[1747589445134,34.26390506,174.9,174.85,14.25246997]
[1747589445338,34.26390506,174.9,174.84,14.25246997]
[1747589445339,14.25246997,174.89,174.84,14.25246997]
[1747589445847,14.25246997,174.89,174.81,4.44128471]
[1747589446145,5.71820677,174.88,174.84,14.25246997]
[1747589447065,5.71820677,174.88,174.85,14.25246997]
[1747589447354,5.71794579,174.89,174.86,14.25246997]
[1747589447655,5.71794579,174.89,174.85,14.25246997]
[1747589447952,5.71794579,174.89,174.82,1.14366864]
[1747589448130,5.71794579,174.89,174.85,14.25246997]
[1747589448546,5.71794579,174.89,174.86,14.25246997]
[1747589448940,5.71794579,174.89,174.82,1.14366864]
[1747589449246,5.71794579,174.89,174.85,14.25246997]
[1747589449452,5.71794579,174.89,174.83,14.25246997]
[1747589449453,14.25246997,174.88,174.83,14.25246997]
[1747589449656,14.25246997,174.88,174.81,30.44128471]
[1747589449955,34.26511528,174.89,174.84,14.25246997]
[1747589450454,20.01264531,174.89,174.81,4.44128471]
[1747589450657,34.26511528,174.89,174.84,14.25246997]
[1747589450848,20.01264531,174.89,174.85,14.25246997]
[1747589451156,20.01264531,174.89,174.81,10.16174609]
[1747589451550,20.01264531,174.89,174.85,14.25246997]
[1747589452228,20.01264531,174.89,174.81,4.44128471]
[1747589452428,20.01264531,174.89,174.85,14.25246997]
[1747589453057,28.54716949,174.89,174.84,14.25246997]
[1747589453534,14.29469952,174.89,174.86,14.25246997]
[1747589453740,19.96969597,174.91,174.86,14.25246997]
[1747589453937,19.96969597,174.91,174.81,4.44128471]
[1747589453938,14.25246997,174.89,174.81,4.44128471]
[1747589454137,14.25246997,174.89,174.84,14.25246997]
[1747589454653,14.25246997,174.9,174.85,14.25246997]
[1747589454863,20.010291,174.91,174.84,14.25246997]
[1747589455051,14.25246997,174.89,174.84,14.25246997]
[1747589455357,20.010291,174.91,174.84,14.25246997]
[1747589455564,20.010291,174.91,174.86,14.25246997]
[1747589455764,34.26276097,174.91,174.86,14.25246997]
[1747589456057,20.010291,174.91,174.87,14.25246997]
[1747589456661,5.717226,174.91,174.87,14.25246997]
[1747589456848,5.717226,174.91,174.87,6.4391]
[1747589457028,5.71657234,174.93,174.89,14.25246997]
[1747589457330,5.71657234,174.93,174.87,6.4391]
[1747589457331,19.96904231,174.93,174.88,14.25246997]
[1747589457532,14.25246997,174.9,174.83,6.4391]
[1747589457741,14.25246997,174.89,174.84,14.25246997]
[1747589458468,14.25246997,174.9,174.85,14.25246997]
[1747589459135,19.97034978,174.89,174.83,6.4391]
[1747589459357,19.97034978,174.89,174.84,14.25246997]
[1747589459768,5.71787981,174.89,174.85,14.25246997]
[1747589460448,5.71787981,174.89,174.83,6.4391]